fUST/lending_fUST_20250117
["ID","MTS","AMOUNT","RATE_DAILY","PERIOD"]
[349302569,1737107450004,-500.0,0.0002315,3]
[349302570,1737107450013,-703.62,0.0002315,3]
[349302571,1737107450022,-500.0,0.0002315,3]
[349302572,1737107450032,-854.16,0.0002315,3]
[349302573,1737107450041,-5079.07,0.0002315,3]
[349302574,1737107450050,-3545.99,0.0002315,3]
[349302575,1737107450060,-500.0,0.0002315,3]
[349302576,1737107450070,-2493.83204289,0.0002315,3]
[349302577,1737107450095,-500.0,0.00023013,3]
[349302578,1737107450107,-3991.54795711,0.0002315,3]
[349302579,1737107450116,-151.0,0.000232,6]
[349302580,1737107450125,-500.0,0.00023287,3]
[349302581,1737107450135,-500.0,0.00023287,3]
[349302582,1737107450145,-1714.98,0.00023287,3]
[349302583,1737107450155,-601.76,0.00023287,3]
[349302584,1737107450163,-500.0,0.00023287,3]
[349302585,1737107450173,-3281.86,0.00023287,3]
[349302586,1737107450184,-1962.95,0.00023287,3]
[349302587,1737107450193,-880.44,0.00023287,3]
[349302588,1737107450203,-1479.95,0.00023287,3]
[349302589,1737107450213,-500.0,0.00023287,3]
[349302590,1737107450222,-703.62,0.00023287,3]
[349302591,1737107450232,-500.0,0.00023287,3]
[349302592,1737107450241,-854.16,0.00023287,3]
[349302593,1737107450250,-5079.07,0.00023287,3]
[349302594,1737107450260,-3545.99,0.00023287,3]
[349302595,1737107450269,-500.0,0.00023287,3]
[349302596,1737107450279,-6485.38,0.00023287,3]
[349302597,1737107450289,-5980.0,0.00023328,7]
[349302598,1737107450299,-153.0,0.00023381,2]
[349302599,1737107450308,-153.0,0.00023381,2]
[349302600,1737107450318,-153.0,0.00023381,2]
[349302601,1737107450328,-226.62,0.00023381,2]
[349302602,1737107450337,-2872.41080698,0.000234,2]
[349302603,1737107450347,-2872.41080695,0.000234,2]
[349302604,1737107450356,-2872.41080695,0.000234,2]
[349302605,1737107450465,-2872.41080695,0.000234,2]
[349302606,1737107450475,-151.0,0.000234,9]
[349302607,1737107450486,-500.0,0.00023424,3]
[349302608,1737107450495,-500.0,0.00023424,3]
[349302609,1737107450505,-1714.98,0.00023424,3]
[349302610,1737107450516,-601.76,0.00023424,3]
[349302611,1737107450525,-500.0,0.00023424,3]
[349302612,1737107450535,-3281.86,0.00023424,3]
[349302613,1737107450545,-1962.95,0.00023424,3]
[349302614,1737107450555,-880.44,0.00023424,3]
[349302615,1737107450564,-1479.95,0.00023424,3]
[349302616,1737107450574,-500.0,0.00023424,3]
[349302617,1737107450584,-703.62,0.00023424,3]
[349302618,1737107450593,-500.0,0.00023424,3]
[349302619,1737107450603,-854.16,0.00023424,3]
[349302620,1737107450612,-5079.07,0.00023424,3]
[349302621,1737107450623,-3545.99,0.00023424,3]
[349302622,1737107450633,-500.0,0.00023424,3]
[349302623,1737107450643,-6485.38,0.00023424,3]
[349302624,1737107450653,-22556.50618562,0.00023436,2]
[349302625,1737107450662,-153.0,0.00023448,2]
[349302626,1737107450672,-153.0,0.00023448,2]
[349302627,1737107450681,-153.0,0.00023448,2]
[349302628,1737107450690,-153.0,0.00023448,2]
[349302629,1737107450700,-153.0,0.00023448,2]
[349302630,1737107450709,-153.0,0.00023448,2]
[349302631,1737107450720,-153.0,0.00023448,2]
[349302632,1737107450729,-153.0,0.00023448,2]
[349302633,1737107450739,-153.0,0.00023448,2]
[349302634,1737107450748,-91.84604902,0.00023448,2]
[349302635,1737107450760,-61.15395098,0.00023448,2]
[349302636,1737107450769,-153.0,0.00023448,2]
[349302637,1737107450779,-153.0,0.00023448,2]
[349302638,1737107450788,-153.0,0.00023448,2]
[349302639,1737107450798,-153.0,0.00023448,2]
[349302640,1737107450808,-153.0,0.00023448,2]
[349302641,1737107450819,-153.0,0.00023448,2]
[349302642,1737107450829,-153.0,0.00023448,2]
[349302643,1737107450838,-153.0,0.00023448,2]
[349302644,1737107450849,-153.0,0.00023448,2]
[349302645,1737107450858,-153.0,0.00023448,2]
[349302646,1737107450867,-247.0,0.00023448,2]
[349302647,1737107450876,-500.0,0.00023561,3]
[349302648,1737107450885,-500.0,0.00023561,3]
[349302649,1737107450895,-1714.98,0.00023561,3]
[349302650,1737107450904,-601.76,0.00023561,3]
[349302651,1737107450914,-500.0,0.00023561,3]
[349302652,1737107450923,-3281.86,0.00023561,3]
[349302653,1737107450933,-1962.95,0.00023561,3]
[349302654,1737107450943,-880.44,0.00023561,3]
[349302655,1737107450952,-1479.95,0.00023561,3]
[349302656,1737107450962,-500.0,0.00023561,3]
[349302657,1737107450971,-703.62,0.00023561,3]
[349302658,1737107450982,-500.0,0.00023561,3]
[349302659,1737107450991,-854.16,0.00023561,3]
[349302660,1737107451001,-5079.07,0.00023561,3]
[349302661,1737107451010,-3545.99,0.00023561,3]
[349302662,1737107451021,-519.95385055,0.00023561,3]
[349302663,1737107451031,-6485.38,0.00023561,3]
[349302664,1737107451041,-153.0,0.000236,2]
[349302665,1737107451050,-2000.0,0.000236,2]
[349302666,1737107451059,-2000.0,0.000236,2]
[349302667,1737107451069,-20809.25135693,0.00023619,59]
[349302668,1737107451079,-151.0,0.00023665,7]
[349302669,1737107451089,-151.0,0.00023665,7]
[349302670,1737107451100,-166.182604,0.00023667,7]
[349302671,1737107451111,-299.84,0.00023667,14]
[349302672,1737107451120,-1228.5,0.00023667,14]
[349302673,1737107451130,-343.95342145,0.00023673,2]
[349302674,1737107451142,-156.04657855,0.00023673,2]
[349302675,1737107451151,-500.0,0.00023673,2]
[349302676,1737107451161,-433.11073065,0.00023673,2]
[349302680,1737108187995,188.964401,0.00013973,2]
[349303254,1737108640107,-863.44593742,0.000189,2]
[349303256,1737108640117,-292.19315133,0.00019676,2]
[349303372,1737108642726,-207.80684867,0.00019676,2]
[349303374,1737108642735,-500.0,0.00019855,2]
[349303376,1737108642745,-188.964401,0.00020447,2]
[349303378,1737108642754,-3595.0,0.00020649,2]
[349303380,1737108642764,-395.0,0.0002074,2]
[349303383,1737108642773,-312.18164851,0.00021817,2]
[349303385,1737108642783,-815.14,0.000219,2]
[349303386,1737108642792,-300.0,0.00021916,2]
[349303389,1737108642801,-654.0,0.00021916,2]
[349303390,1737108642811,-516.57558204,0.00021917,3]
[349303392,1737108642821,-500.0,0.00021917,3]
[349303394,1737108642830,-500.0,0.00021917,3]
[349303397,1737108642840,-500.0,0.00021917,3]
[349303399,1737108642849,-500.0,0.00021917,3]
[349303401,1737108642858,-490.63151978,0.00021917,3]
[349303447,1737108645733,-9.36848022,0.00021917,3]
[349303449,1737108645743,-509.42906966,0.00021917,3]
[349303451,1737108645753,-500.0,0.00021917,3]
[349303453,1737108645763,-500.0,0.00021917,3]
[349303455,1737108645773,-500.0,0.00021917,3]
[349303457,1737108645782,-500.0,0.00021917,3]
[349303459,1737108645792,-429.70120025,0.00021917,3]
[349303461,1737108645802,-500.0,0.00021917,3]
[349303463,1737108645812,-510.59073794,0.00021917,3]
[349303465,1737108645821,-500.0,0.00021917,3]
[349303467,1737108645830,-500.0,0.00021917,3]
[349303469,1737108645839,-500.0,0.00021917,3]
[349303471,1737108645849,-500.0,0.00021917,3]
[349303473,1737108645858,-3026.89,0.00021917,3]
[349303475,1737108645868,-500.0,0.00021917,3]
[349303477,1737108645878,-500.0,0.00021917,3]
[349303479,1737108645887,-500.0,0.00021917,3]
[349303481,1737108645896,-500.0,0.00021917,3]
[349303483,1737108645906,-500.0,0.00021917,3]
[349303485,1737108645916,-1504.19,0.00021917,3]
[349303487,1737108645925,-500.0,0.00021917,3]
[349303489,1737108645934,-500.0,0.00021917,3]
[349303491,1737108645944,-500.0,0.00021917,3]
[349303493,1737108645954,-500.0,0.00021917,3]
[349303495,1737108645965,-71.64600866,0.00021917,3]
[349303496,1737108645977,-428.35399134,0.00021917,3]
[349303497,1737108645986,-500.0,0.00021917,3]
[349303498,1737108645996,-500.0,0.00021917,3]
[349303499,1737108646006,-500.0,0.00021917,3]
[349303500,1737108646017,-266.45124052,0.00021917,3]
[349303502,1737108646029,-233.54875948,0.00021917,3]
[349303504,1737108646038,-500.0,0.00021917,3]
[349303506,1737108646048,-559.05223107,0.00021917,3]
[349303508,1737108646061,-59.96039705,0.00021917,3]
[349303511,1737108646073,-440.03960295,0.00021917,3]
[349303513,1737108646083,-500.0,0.00021917,3]
[349303515,1737108646093,-880.8,0.00021917,3]
[349303517,1737108646103,-500.0,0.00021917,3]
[349303518,1737108646112,-500.0,0.00021917,3]
[349303520,1737108646121,-500.0,0.00021917,3]
[349303522,1737108646131,-500.0,0.00021917,3]
[349303524,1737108646140,-500.0,0.00021917,3]
[349303526,1737108646150,-500.0,0.00021917,3]
[349303528,1737108646159,-500.0,0.00021917,3]
[349303530,1737108646170,-500.0,0.00021917,3]
[349303532,1737108646180,-500.0,0.00021917,3]
[349303535,1737108646189,-500.0,0.00021917,3]
[349303537,1737108646199,-500.0,0.00021917,3]
[349303539,1737108646208,-92.73003588,0.00021917,3]
[349303588,1737108647010,-407.26996412,0.00021917,3]
[349303589,1737108647020,-500.0,0.00021917,3]
[349303590,1737108647030,-500.0,0.00021917,3]
[349303591,1737108647039,-500.0,0.00021917,3]
[349303592,1737108647049,-500.0,0.00021917,3]
[349303593,1737108647059,-413.80825279,0.00021917,3]
[349303594,1737108647069,-1298.42,0.00021917,3]
[349303595,1737108647079,-3129.12,0.00021917,3]
[349303596,1737108647089,-500.0,0.00021917,3]
[349303597,1737108647226,-500.0,0.00021917,3]
[349303598,1737108647236,-500.0,0.00021917,3]
[349303599,1737108647246,-500.0,0.00021917,3]
[349303600,1737108647256,-500.0,0.00021917,3]
[349303601,1737108647265,-156.77388312,0.00021917,3]
[349303602,1737108647277,-1468.47611688,0.00021917,3]
[349303603,1737108647286,-500.0,0.00021917,3]
[349303604,1737108647296,-833.65,0.00021917,3]
[349303605,1737108647306,-500.0,0.00021917,3]
[349303606,1737108647316,-500.0,0.00021917,3]
[349303607,1737108647325,-500.0,0.00021917,3]
[349303608,1737108647335,-500.0,0.00021917,3]
[349303609,1737108647344,-500.0,0.00021917,3]
[349303610,1737108647354,-600.0,0.00022047,2]
[349303611,1737108647363,-180.608,0.00022047,2]
[349303612,1737108647372,-500.0,0.00022053,3]
[349303613,1737108647382,-500.0,0.00022053,3]
[349303614,1737108647391,-500.0,0.00022053,3]
[349303615,1737108647400,-278.11,0.00022054,3]
[349303616,1737108647410,-500.0,0.00022054,3]
[349303617,1737108647419,-272.18,0.00022054,3]
[349303618,1737108647428,-3026.89,0.00022054,3]
[349303619,1737108647438,-500.0,0.00022054,3]
[349303620,1737108647448,-1504.19,0.00022054,3]
[349303621,1737108647459,-508.15,0.00022054,3]
[349303622,1737108647468,-500.0,0.00022054,3]
[349303623,1737108647478,-880.8,0.00022054,3]
[349303624,1737108647490,-500.0,0.00022054,3]
[349303625,1737108647500,-500.0,0.00022054,3]
[349303626,1737108647510,-500.0,0.00022054,3]
[349303627,1737108647520,-500.0,0.00022054,3]
[349303628,1737108647529,-1298.42,0.00022054,3]
[349303629,1737108647538,-1488.15772643,0.00022054,3]
[349303630,1737108862197,2396.0,0.00025,120]
[349303631,1737109032091,178.150464,0.00013973,2]
[349303695,1737109832107,-300.0,0.00019999,2]
[349303697,1737109832116,-1002.72025384,0.0002,5]
[349303712,1737109832269,-12075.56848183,0.0002,5]
[349303714,1737109832278,-2532.61060746,0.0002,5]
[349303716,1737109832287,-82000.0,0.0002,3]
[349303717,1737109832296,-319.87351522,0.00020347,2]
[349303721,1737109832305,-178.150464,0.00020447,2]
[349303723,1737109832314,-319.87351519,0.0002081,2]
[349303724,1737109832323,-1704.1444638,0.000209,2]
[349303725,1737109832332,-1704.14446356,0.00021003,2]
[349303726,1737109832341,-1704.14446356,0.00021107,2]
[349303727,1737109832350,-1704.14446356,0.0002121,2]
[349303728,1737109832359,-319.87351519,0.00021272,2]
[349303729,1737109832368,-1704.14446356,0.00021314,2]
[349303730,1737109832377,-1704.14446356,0.00021417,2]
[349303731,1737109832386,-1704.14446356,0.00021521,2]
[349303732,1737109832395,-535.0,0.00021547,2]
[349303733,1737109832404,-2067.0,0.00021547,2]
[349303734,1737109832413,-2309.0,0.00021547,2]
[349303735,1737109832422,-1704.14446356,0.00021624,3]
[349303736,1737109832431,-1704.14446356,0.00021728,3]
[349303737,1737109832439,-319.87351519,0.00021735,2]
[349303738,1737109832449,-11676.5509089,0.0002175,2]
[349303739,1737109832458,-154.35,0.00021752,2]
[349303740,1737109832467,-420.0,0.00021776,2]
[349303741,1737109832476,-1704.14446356,0.00021831,3]
[349303742,1737109832485,-431.60307845,0.0002189,3]
[349303743,1737109832494,-863.54,0.000219,2]
[349303744,1737109832503,-500.0,0.00021916,7]
[349303745,1737109832512,-500.0,0.00021917,3]
[349303746,1737109832521,-500.0,0.00021917,3]
[349303747,1737109832530,-500.0,0.00021917,3]
[349303748,1737109832539,-572.7541971,0.00021917,3]
[349303749,1737109832548,-500.0,0.00021917,3]
[349303750,1737109832557,-500.0,0.00021917,3]
[349303751,1737109832567,-500.0,0.00021917,3]
[349303752,1737109832576,-288.56685441,0.00021917,3]
[349303753,1737109832585,-521.34616081,0.00021917,3]
[349303754,1737109832594,-500.0,0.00021917,3]
[349303755,1737109832603,-500.0,0.00021917,3]
[349303756,1737109832612,-500.0,0.00021917,3]
[349303757,1737109832621,-500.0,0.00021917,3]
[349303758,1737109832630,-517.2306528,0.00021917,3]
[349303759,1737109832640,-500.0,0.00021917,3]
[349303760,1737109832649,-505.2428438,0.00021917,3]
[349303761,1737109832658,-500.0,0.00021917,3]
[349303762,1737109832667,-500.0,0.00021917,3]
[349303763,1737109832677,-200.0,0.00021917,3]
[349303764,1737109832686,-500.0,0.00021917,3]
[349303765,1737109832696,-500.0,0.00021917,3]
[349303766,1737109832706,-500.0,0.00021917,3]
[349303767,1737109832716,-500.0,0.00021917,3]
[349303768,1737109832725,-500.0,0.00021917,3]
[349303769,1737109832735,-500.0,0.00021917,3]
[349303770,1737109832745,-500.0,0.00021917,3]
[349303771,1737109832754,-500.0,0.00021917,3]
[349303772,1737109832763,-500.0,0.00021917,3]
[349303773,1737109832773,-500.0,0.00021917,3]
[349303774,1737109832783,-500.0,0.00021917,3]
[349303775,1737109832792,-500.0,0.00021917,3]
[349303776,1737109832801,-500.0,0.00021917,3]
[349303777,1737109832810,-500.0,0.00021917,3]
[349303778,1737109832819,-500.0,0.00021917,3]
[349303779,1737109832829,-500.0,0.00021917,3]
[349303780,1737109832838,-500.0,0.00021917,3]
[349303781,1737109832847,-500.0,0.00021917,3]
[349303782,1737109832856,-500.0,0.00021917,3]
[349303783,1737109832866,-500.0,0.00021917,3]
[349303784,1737109832876,-500.0,0.00021917,3]
[349303785,1737109832889,-500.0,0.00021917,2]
[349303786,1737109832898,-500.0,0.00021917,3]
[349303787,1737109832907,-367.84836339,0.00021917,3]
[349303788,1737109832917,-455.43224117,0.00021917,3]
[349303789,1737109832926,-500.0,0.00021917,3]
[349303790,1737109832935,-500.0,0.00021917,3]
[349303791,1737109832944,-500.0,0.00021917,3]
[349303792,1737109832956,-500.0,0.00021917,3]
[349303793,1737109832965,-500.0,0.00021917,3]
[349303794,1737109832975,-500.0,0.00021917,3]
[349303795,1737109832984,-500.0,0.00021917,3]
[349303796,1737109832994,-500.0,0.00021917,3]
[349303797,1737109833004,-534.98085898,0.00021917,3]
[349303798,1737109833014,-500.0,0.00021917,3]
[349303799,1737109833023,-500.0,0.00021917,3]
[349303800,1737109833033,-500.0,0.00021917,3]
[349303801,1737109833042,-500.0,0.00021917,3]
[349303802,1737109833052,-500.0,0.00021917,3]
[349303803,1737109833062,-500.0,0.00021917,3]
[349303804,1737109833071,-500.0,0.00021917,3]
[349303805,1737109833080,-500.0,0.00021917,3]
[349303806,1737109833089,-500.0,0.00021917,3]
[349303807,1737109833099,-500.0,0.00021917,3]
[349303808,1737109833108,-500.0,0.00021917,3]
[349303809,1737109833117,-500.0,0.00021917,3]
[349303810,1737109833127,-500.0,0.00021917,3]
[349303811,1737109833137,-500.0,0.00021917,3]
[349303812,1737109833147,-500.0,0.00021917,3]
[349303813,1737109833156,-517.34636823,0.00021917,3]
[349303814,1737109833166,-500.0,0.00021917,3]
[349303815,1737109833175,-500.0,0.00021917,3]
[349303816,1737109833186,-500.0,0.00021917,3]
[349303817,1737109833195,-500.0,0.00021917,3]
[349303818,1737109833207,-500.0,0.00021917,3]
[349303819,1737109833216,-500.0,0.00021917,3]
[349303820,1737109833226,-510.55232655,0.00021917,3]
[349303821,1737109833235,-500.0,0.00021917,3]
[349303822,1737109833245,-500.0,0.00021917,3]
[349303823,1737109833254,-500.0,0.00021917,3]
[349303824,1737109833264,-500.0,0.00021917,3]
[349303825,1737109833274,-500.0,0.00021917,3]
[349303826,1737109833283,-500.0,0.00021917,3]
[349303827,1737109833292,-500.0,0.00021917,3]
[349303828,1737109833301,-500.0,0.00021917,3]
[349303829,1737109833310,-500.0,0.00021917,3]
[349303830,1737109833320,-530.24178686,0.00021917,3]
[349303831,1737109833329,-500.0,0.00021917,3]
[349303832,1737109833338,-381.40865742,0.00021917,3]
[349303833,1737109833347,-579.87,0.00021917,3]
[349303834,1737109833357,-500.0,0.00021917,3]
[349303835,1737109833366,-524.14,0.00021917,3]
[349303836,1737109833377,-500.0,0.00021917,3]
[349303837,1737109833493,-500.0,0.00021917,3]
[349303838,1737109833504,-500.0,0.00021917,3]
[349303839,1737109833515,-500.0,0.00021917,3]
[349303840,1737109833524,-500.0,0.00021917,3]
[349303841,1737109833533,-500.0,0.00021917,3]
[349303842,1737109833542,-500.0,0.00021917,3]
[349303843,1737109833552,-561.07,0.00021917,3]
[349303844,1737109833561,-500.0,0.00021917,3]
[349303845,1737109833571,-500.0,0.00021917,3]
[349303846,1737109833581,-500.0,0.00021917,3]
[349303847,1737109833590,-500.0,0.00021917,3]
[349303848,1737109833600,-500.0,0.00021917,3]
[349303849,1737109833609,-500.0,0.00021917,3]
[349303850,1737109833619,-500.0,0.00021917,3]
[349303851,1737109833628,-500.0,0.00021917,3]
[349303852,1737109833637,-500.0,0.00021917,3]
[349303853,1737109833647,-500.0,0.00021917,3]
[349303854,1737109833657,-500.0,0.00021917,3]
[349303855,1737109833667,-500.0,0.00021917,3]
[349303856,1737109833677,-500.0,0.00021917,3]
[349303857,1737109833686,-500.0,0.00021917,3]
[349303858,1737109833696,-500.0,0.00021917,3]
[349303859,1737109833707,-543.06369376,0.00021917,3]
[349303860,1737109833716,-500.0,0.00021917,3]
[349303861,1737109833726,-500.0,0.00021917,3]
[349303862,1737109833735,-500.0,0.00021917,3]
[349303863,1737109833744,-500.0,0.00021917,3]
[349303864,1737109833753,-500.0,0.00021917,3]
[349303865,1737109833763,-500.0,0.00021917,3]
[349303866,1737109833774,-522.67564515,0.00021917,3]
[349303867,1737109833783,-500.0,0.00021917,3]
[349303868,1737109833793,-330.67319878,0.00021917,3]
[349303869,1737109833803,-500.0,0.00021917,3]
[349303870,1737109833812,-500.0,0.00021917,3]
[349303871,1737109833822,-500.0,0.00021917,3]
[349303872,1737109833831,-500.0,0.00021917,3]
[349303873,1737109833841,-500.0,0.00021917,3]
[349303874,1737109833850,-500.0,0.00021917,3]
[349303875,1737109833860,-500.0,0.00021917,3]
[349303876,1737109833870,-500.0,0.00021917,3]
[349303877,1737109833885,-500.0,0.00021917,3]
[349303878,1737109833894,-500.0,0.00021917,3]
[349303879,1737109833904,-500.0,0.00021917,3]
[349303880,1737109833915,-500.0,0.00021917,3]
[349303881,1737109833925,-500.0,0.00021917,3]
[349303882,1737109833934,-500.0,0.00021917,3]
[349303883,1737109833945,-500.0,0.00021917,3]
[349303884,1737109833957,-500.0,0.00021917,3]
[349303885,1737109833966,-500.0,0.00021917,3]
[349303886,1737109833976,-500.0,0.00021917,3]
[349303887,1737109833986,-500.0,0.00021917,3]
[349303888,1737109833996,-500.0,0.00021917,3]
[349303889,1737109834005,-500.0,0.00021917,3]
[349303890,1737109834015,-500.0,0.00021917,3]
[349303891,1737109834024,-500.0,0.00021917,3]
[349303892,1737109834034,-500.0,0.00021917,3]
[349303893,1737109834043,-500.0,0.00021917,3]
[349303894,1737109834053,-500.0,0.00021917,3]
[349303895,1737109834062,-500.0,0.00021917,3]
[349303896,1737109834072,-500.0,0.00021917,3]
[349303897,1737109834081,-500.0,0.00021917,3]
[349303898,1737109834090,-500.0,0.00021917,3]
[349303899,1737109834100,-1557.53,0.00021917,3]
[349303900,1737109834109,-500.0,0.00021917,3]
[349303901,1737109834118,-500.0,0.00021917,3]
[349303902,1737109834127,-500.0,0.00021917,3]
[349303903,1737109834137,-515.08469145,0.00021917,3]
[349303904,1737109834146,-500.0,0.00021917,3]
[349303905,1737109834155,-595.37742842,0.00021917,3]
[349303906,1737109834164,-571.57085,0.00021917,3]
[349303907,1737109834173,-500.0,0.00021917,3]
[349303908,1737109834183,-500.0,0.00021917,3]
[349303909,1737109834192,-500.0,0.00021917,3]
[349303910,1737109834203,-500.0,0.00021917,3]
[349303911,1737109834212,-500.0,0.00021917,3]
[349303912,1737109834221,-500.0,0.00021917,3]
[349303913,1737109834231,-500.0,0.00021917,3]
[349303914,1737109834240,-500.0,0.00021917,3]
[349303915,1737109834249,-500.0,0.00021917,3]
[349303916,1737109834259,-500.0,0.00021917,3]
[349303917,1737109834269,-500.0,0.00021917,3]
[349303918,1737109834278,-529.79,0.00021917,3]
[349303919,1737109834288,-500.0,0.00021917,3]
[349303920,1737109834298,-500.0,0.00021917,3]
[349303921,1737109834308,-500.0,0.00021917,3]
[349303922,1737109834318,-500.0,0.00021917,3]
[349303923,1737109834327,-617.66,0.00021917,3]
[349303924,1737109834337,-500.0,0.00021917,3]
[349303925,1737109834346,-500.0,0.00021917,3]
[349303926,1737109834356,-500.0,0.00021917,3]
[349303927,1737109834365,-549.89,0.00021917,3]
[349303928,1737109834375,-500.0,0.00021917,3]
[349303929,1737109834384,-500.0,0.00021917,3]
[349303930,1737109834393,-500.0,0.00021917,3]
[349303931,1737109834402,-502.39172343,0.00021917,3]
[349303932,1737109834412,-500.0,0.00021917,3]
[349303933,1737109834421,-151.0,0.00021917,2]
[349303934,1737109834431,-500.0,0.00021917,3]
[349303935,1737109834449,-500.0,0.00021917,3]
[349303936,1737109834464,-500.0,0.00021917,3]
[349303937,1737109834474,-500.0,0.00021917,3]
[349303938,1737109834484,-500.0,0.00021917,3]
[349303939,1737109834494,-500.0,0.00021917,3]
[349303940,1737109834504,-500.0,0.00021917,3]
[349303941,1737109834513,-500.0,0.00021917,3]
[349303942,1737109834523,-500.0,0.00021917,3]
[349303943,1737109834532,-500.0,0.00021917,3]
[349303944,1737109834544,-500.0,0.00021917,3]
[349303945,1737109834553,-500.0,0.00021917,3]
[349303946,1737109834564,-500.0,0.00021917,3]
[349303947,1737109834573,-500.0,0.00021917,3]
[349303948,1737109834583,-500.0,0.00021917,3]
[349303949,1737109834593,-500.0,0.00021917,3]
[349303950,1737109834604,-500.0,0.00021917,3]
[349303951,1737109834614,-500.0,0.00021917,3]
[349303952,1737109834625,-500.0,0.00021917,3]
[349303953,1737109834634,-500.0,0.00021917,3]
[349303954,1737109834644,-500.0,0.00021917,3]
[349303955,1737109834655,-151.0,0.00021917,2]
[349303956,1737109834664,-500.0,0.00021917,3]
[349303957,1737109834674,-500.0,0.00021917,3]
[349303958,1737109834684,-500.0,0.00021917,3]
[349303959,1737109834694,-500.0,0.00021917,3]
[349303960,1737109834704,-500.0,0.00021917,3]
[349303961,1737109834713,-500.0,0.00021917,3]
[349303962,1737109834723,-500.0,0.00021917,3]
[349303963,1737109834733,-500.0,0.00021917,3]
[349303964,1737109834752,-500.0,0.00021917,3]
[349303965,1737109834766,-500.0,0.00021917,3]
[349303966,1737109834779,-500.0,0.00021917,3]
[349303967,1737109834792,-500.0,0.00021917,3]
[349303968,1737109834805,-500.0,0.00021917,3]
[349303969,1737109834818,-1121.24,0.00021917,3]
[349303970,1737109834829,-500.0,0.00021917,3]
[349303971,1737109834841,-500.0,0.00021917,3]
[349303972,1737109834854,-500.0,0.00021917,3]
[349303973,1737109834866,-151.0,0.00021917,2]
[349303974,1737109834880,-234.612516,0.00021917,2]
[349303975,1737109834891,-538.17873073,0.00021917,3]
[349303976,1737109834903,-500.0,0.00021917,3]
[349303977,1737109834915,-500.0,0.00021917,3]
[349303978,1737109834927,-500.0,0.00021917,3]
[349303979,1737109834939,-500.0,0.00021917,3]
[349303980,1737109834953,-500.0,0.00021917,3]
[349303981,1737109834965,-500.0,0.00021917,3]
[349303982,1737109834978,-500.0,0.00021917,3]
[349303983,1737109834990,-500.0,0.00021917,3]
[349303984,1737109835003,-1232.508605,0.00021917,2]
[349303985,1737109835017,-1232.508605,0.00021917,2]
[349303986,1737109835028,-500.0,0.00021917,3]
[349303987,1737109835040,-500.0,0.00021917,3]
[349303988,1737109835052,-500.0,0.00021917,3]
[349303989,1737109835066,-500.0,0.00021917,3]
[349303990,1737109835079,-517.23869507,0.00021917,3]
[349303991,1737109835091,-500.0,0.00021917,3]
[349303992,1737109835103,-500.0,0.00021917,3]
[349303993,1737109835116,-887.63,0.00021917,3]
[349303994,1737109835127,-500.0,0.00021917,3]
[349303995,1737109835139,-739.69,0.00021917,3]
[349303996,1737109835150,-500.0,0.00021917,3]